[Event "2nd Sparkasse Trophy Harrwitz Memorial"]
[Site "Bolzano"]
[Date "2025.04.25"]
[Round "1.1"]
[White "Di Liberto, Michele"]
[Black "Casadio, Niccolo`"]
[Result "0-1"]
[Annotator "RC"]
[ECO "B97"]
[WhiteElo "2106"]
[BlackElo "2268"]
[PlyCount "72"]
[EventDate "2025.04.19"]
[EventType "swiss"]
[EventCountry "ITA"]
[SourceTitle "playchess.com"]
[Source "ChessBase"]
[SourceQuality "1"]
[TimeControl "40/5400+30:900+30"]

1. e4 {[%emt 0:00:03]} c5 {[%emt 0:00:05]} 2. Nf3 {[%emt 0:00:08]} d6 {[%emt 0:00:06]} 3. d4 {[%emt 0:00:07]} cxd4 {[%emt 0:00:05]} 4. Nxd4 {[%emt 0:00:09]} Nf6 {[%emt 0:00:04]} 5. Nc3 {[%emt 0:00:08]} a6 {[%emt 0:00:05]} 6. Bg5 {[%emt 0:00:20]} e6 {[%emt 0:00:12]} 7. f4 {[%emt 0:00:07]} Qb6 {[%emt 0:00:07]} 8. Qd2 {[%emt 0:01:01]} Qxb2 {[%emt 0:00:07]} 9. Rb1 {[%emt 0:00:08]} Qa3 {[%emt 0:00:04]} 10. f5 {[%emt 0:02:45]} Be7 {[%emt 0:00:23]} 11. fxe6 {[%emt 0:04:23]} Bxe6 {[%emt 0:00:11]} 12. Nxe6 {[%emt 0:22:56]} fxe6 {[%emt 0:00:20]} 13. Bc4 {[%emt 0:05:03]} Nbd7 {[%emt 0:02:33]} 14. Rb3 {[%emt 0:15:01]} Qa5 {[%emt 0:02:07]} 15. Be3 {[%emt 0:02:13]} d5 {[%emt 0:15:33]} 16. exd5 {[%emt 0:00:40]} Rc8 {[%emt 0:00:49]} 17. dxe6 {[%emt 0:01:51]} Nc5 {[%emt 0:00:51]} 18. O-O {[%emt 0:09:57]} Nxb3 {[%emt 0:01:40]} 19. cxb3 {[%emt 0:00:39]} O-O {[%emt 0:00:42]} 20. Nd5 {[%emt 0:00:35]} Qd8 {[%emt 0:01:31]} 21. Rxf6 {[%emt 0:06:22]} gxf6 {[%emt 0:01:08]} 22. Bh6 {[%emt 0:07:01]} b5 {[%emt 0:02:54]} 23. Qf4 {[%emt 0:10:53]} Kh8 {[%emt 0:00:48]} 24. Bxf8 {[%emt 0:05:13]} Bxf8 {[%emt 0:02:58]} 25. e7 {[%emt 0:03:23]} Bxe7 {[%emt 0:00:07]} 26. Nxe7 {[%emt 0:00:18]} Qxe7 {[%emt 0:00:09]} 27. Bd3 {[%emt 0:00:13]} Qe1+ {[%emt 0:00:39]} 28. Bf1 {[%emt 0:01:21]} Qe5 {[%emt 0:00:06]} 29. Qxe5 {[%emt 0:00:12]} fxe5 {[%emt 0:00:05]} 30. a4 {[%emt 0:00:30]} b4 {[%emt 0:00:34]} 31. Bxa6 {[%emt 0:01:00]} Rc3 {[%emt 0:00:03]} 32. Kf2 {[%emt 0:01:05]} Rxb3 {[%emt 0:00:06]} 33. Bb7 {[%emt 0:00:25]} Ra3 {[%emt 0:00:14]} 34. Ke2 {[%emt 0:00:10]} b3 {[%emt 0:00:19]} 35. Kd3 {[%emt 0:00:27]} b2+ {[%emt 0:00:07]} 36. Kc2 {[%emt 0:00:11]} Rb3 {[%emt 0:00:07]} 0-1

[Event "2nd Sparkasse Trophy Harrwitz Memorial"]
[Site "Bolzano"]
[Date "2025.04.25"]
[Round "1.2"]
[White "Tripi, Nicolo`"]
[Black "Spornberger, Andre"]
[Result "1/2-1/2"]
[Annotator "RC"]
[ECO "C15"]
[WhiteElo "2020"]
[BlackElo "2233"]
[PlyCount "40"]
[EventDate "2025.04.19"]
[EventType "swiss"]
[EventCountry "ITA"]
[SourceTitle "playchess.com"]
[Source "ChessBase"]
[SourceQuality "1"]
[TimeControl "40/5400+30:900+30"]

1. e4 {[%emt 0:00:04]} e6 {[%emt 0:00:07]} 2. d4 {[%emt 0:00:16]} d5 {[%emt 0:00:09]} 3. Nc3 {[%emt 0:00:08]} Bb4 {[%emt 0:00:15]} 4. Bd2 {[%emt 0:00:38]} c5 {[%emt 0:07:06]} 5. exd5 {[%emt 0:00:13]} exd5 {[%emt 0:05:01]} 6. Bb5+ {[%emt 0:02:24]} Nc6 {[%emt 0:03:14]} 7. Nf3 {[%emt 0:02:37]} Nge7 {[%emt 0:03:22]} 8. O-O {[%emt 0:01:37]} O-O {[%emt 0:00:16]} 9. a3 {[%emt 0:14:39]} Bxc3 {[%emt 0:02:59]} 10. Bxc3 {[%emt 0:02:07]} c4 {[%emt 0:00:22]} 11. Bxc6 {[%emt 0:00:18]} Nxc6 {[%emt 0:00:45]} 12. Ne5 {[%emt 0:01:00]} Bf5 {[%emt 0:05:06]} 13. Re1 {[%emt 0:09:06]} Rc8 {[%emt 0:02:44]} 14. Re3 {[%emt 0:01:32]} Re8 {[%emt 0:04:53]} 15. Qf3 {[%emt 0:18:06]} Be6 {[%emt 0:21:32]} 16. Rae1 {[%emt 0:02:33]} b5 {[%emt 0:04:40]} 17. h4 {[%emt 0:14:51]} Nxe5 {[%emt 0:14:29]} 18. Rxe5 {[%emt 0:00:22]} Qd7 {[%emt 0:01:31]} 19. h5 {[%emt 0:01:09]} h6 {[%emt 0:00:27]} 20. Qe2 {[%emt 0:05:41]} Red8 {[%emt 0:03:17]} 1/2-1/2

[Event "2nd Sparkasse Trophy Harrwitz Memorial"]
[Site "Bolzano"]
[Date "2025.04.25"]
[Round "1.3"]
[White "Olivetti, Davide"]
[Black "De Vita, Gianni"]
[Result "1/2-1/2"]
[Annotator "RC"]
[ECO "B22"]
[WhiteElo "2224"]
[BlackElo "1975"]
[PlyCount "106"]
[EventDate "2025.04.19"]
[EventType "swiss"]
[EventCountry "ITA"]
[SourceTitle "playchess.com"]
[Source "ChessBase"]
[SourceQuality "1"]
[TimeControl "40/5400+30:900+30"]

1. e4 {[%emt 0:00:04]} c5 {[%emt 0:00:13]} 2. c3 {[%emt 0:00:14]} Nf6 {[%emt 0:00:33]} 3. e5 {[%emt 0:00:16]} Nd5 {[%emt 0:00:09]} 4. d4 {[%emt 0:00:46]} cxd4 {[%emt 0:00:12]} 5. Qxd4 {[%emt 0:00:51]} e6 {[%emt 0:01:12]} 6. Nf3 {[%emt 0:00:20]} Nc6 {[%emt 0:01:20]} 7. Qe4 {[%emt 0:02:51]} d6 {[%emt 0:06:10]} 8. Bb5 {[%emt 0:09:22]} Bd7 {[%emt 0:03:17]} 9. Bg5 {[%emt 0:01:10]} Qb6 {[%emt 0:02:16]} 10. c4 {[%emt 0:08:56]} Ndb4 {[%emt 0:04:40]} 11. a3 {[%emt 0:03:07]} d5 {[%emt 0:01:27]} 12. Qe2 {[%emt 0:01:05]} dxc4 {[%emt 0:02:50]} 13. Bxc4 {[%emt 0:01:13]} Na6 {[%emt 0:04:19]} 14. O-O {[%emt 0:02:08]} Na5 {[%emt 0:09:36]} 15. Nbd2 {[%emt 0:01:07]} Nxc4 {[%emt 0:10:29]} 16. Nxc4 {[%emt 0:00:11]} Qb5 {[%emt 0:01:00]} 17. Rfd1 {[%emt 0:02:07]} Rc8 {[%emt 0:01:05]} 18. b3 {[%emt 0:04:00]} Nc5 {[%emt 0:07:56]} 19. Nd4 {[%emt 0:08:52]} Qa6 {[%emt 0:01:49]} 20. Qh5 {[%emt 0:04:36]} b5 {[%emt 0:11:11]} 21. Ne3 {[%emt 0:01:27]} Ne4 {[%emt 0:02:45]} 22. Bh4 {[%emt 0:02:52]} Nc3 {[%emt 0:03:18]} 23. Nf3 {[%emt 0:10:56]} Nxd1 {[%emt 0:01:20]} 24. Ng5 {[%emt 0:00:32]} g6 {[%emt 0:01:08]} 25. Qf3 {[%emt 0:00:11]} Be7 {[%emt 0:02:34]} 26. Qxf7+ {[%emt 0:00:44]} Kd8 {[%emt 0:00:01]} 27. Rxd1 {[%emt 0:00:32]} Rc6 {[%emt 0:02:29]} 28. Ne4 {[%emt 0:05:29]} Qxa3 {[%emt 0:06:05]} 29. Bf6 {[%emt 0:11:17]} Re8 {[%emt 0:00:55]} 30. h3 {[%emt 0:02:10]} Rc1 {[%emt 0:00:02]} 31. Rxc1 {[%emt 0:00:48]} Qxc1+ {[%emt 0:00:12]} 32. Kh2 {[%emt 0:00:03]} Qc7 {[%emt 0:03:57]} 33. Nd6 {[%emt 0:03:25]} Bxf6 {[%emt 0:10:30]} 34. Qxf6+ {[%emt 0:13:48]} Re7 {[%emt 0:00:00]} 35. Qh8+ {[%emt 0:00:00]} Be8 {[%emt 0:00:00]} 36. Nxb5 {[%emt 0:00:00]} Qb6 {[%emt 0:00:00]} 37. Nd6 {[%emt 0:00:00]} Qxb3 {[%emt 0:00:00]} 38. Nec4 {[%emt 0:00:00]} Qb4 {[%emt 0:00:00]} 39. Qf8 {[%emt 0:00:00]} a5 {[%emt 0:00:00]} 40. h4 {[%emt 0:00:00]} Qc3 {[%emt 0:00:00]} 41. Nxe8 {[%emt 0:13:42]} Rxe8 {[%emt 0:14:02]} 42. Qd6+ {[%emt 0:00:31]} Kc8 {[%emt 0:00:01]} 43. Qc5+ {[%emt 0:00:24]} Kd8 {[%emt 0:00:40]} 44. Qd6+ {[%emt 0:01:29]} Kc8 {[%emt 0:00:10]} 45. Qa6+ {[%emt 0:00:22]} Kd8 {[%emt 0:01:24]} 46. f4 {[%emt 0:00:40]} Qd4 {[%emt 0:00:58]} 47. Qxa5+ {[%emt 0:02:32]} Ke7 {[%emt 0:00:52]} 48. Qb4+ {[%emt 0:00:16]} Kd8 {[%emt 0:00:22]} 49. Qa5+ {[%emt 0:00:00]} Ke7 {[%emt 0:00:00]} 50. Qa3+ {[%emt 0:00:00]} Kd8 {[%emt 0:00:00]} 51. Nd6 {[%emt 0:00:00]} Qxf4+ {[%emt 0:00:00]} 52. g3 {[%emt 0:00:00]} Qd2+ {[%emt 0:00:00]} 53. Kh3 {[%emt 0:00:00]} Qd5 {[%emt 0:00:00]} 1/2-1/2

[Event "2nd Sparkasse Trophy Harrwitz Memorial"]
[Site "Bolzano"]
[Date "2025.04.25"]
[Round "1.4"]
[White "Radice, Luca"]
[Black "Bonagura, Stefano"]
[Result "0-1"]
[Annotator "RC"]
[ECO "A56"]
[WhiteElo "1963"]
[BlackElo "2199"]
[PlyCount "64"]
[EventDate "2025.04.19"]
[EventType "swiss"]
[EventCountry "ITA"]
[SourceTitle "playchess.com"]
[Source "ChessBase"]
[SourceQuality "1"]
[TimeControl "40/5400+30:900+30"]

1. d4 {[%emt 0:00:05]} Nf6 {[%emt 0:00:22]} 2. c4 {[%emt 0:00:18]} c5 {[%emt 0:00:17]} 3. d5 {[%emt 0:00:31]} e5 {[%emt 0:00:11]} 4. Nc3 {[%emt 0:03:17]} d6 {[%emt 0:00:38]} 5. g3 {[%emt 0:01:57]} g6 {[%emt 0:01:31]} 6. h4 {[%emt 0:03:13]} Bg7 {[%emt 0:02:11]} 7. Bh3 {[%emt 0:04:27]} O-O {[%emt 0:08:12]} 8. Bg5 {[%emt 0:01:44]} h6 {[%emt 0:08:39]} 9. Bxf6 {[%emt 0:01:55]} Qxf6 {[%emt 0:01:32]} 10. e4 {[%emt 0:02:14]} Nd7 {[%emt 0:06:34]} 11. Qe2 {[%emt 0:11:19]} Qe7 {[%emt 0:09:21]} 12. Nf3 {[%emt 0:07:32]} Nf6 {[%emt 0:01:11]} 13. Bxc8 {[%emt 0:09:38]} Raxc8 {[%emt 0:03:37]} 14. h5 {[%emt 0:01:17]} Qd7 {[%emt 0:15:17]} 15. hxg6 {[%emt 0:12:31]} fxg6 {[%emt 0:00:09]} 16. Nh4 {[%emt 0:00:14]} Kh7 {[%emt 0:02:18]} 17. f3 {[%emt 0:06:18]} Nh5 {[%emt 0:05:10]} 18. Qh2 {[%emt 0:00:37]} Qf7 {[%emt 0:05:57]} 19. O-O-O {[%emt 0:04:59]} Bf6 {[%emt 0:01:26]} 20. Nxg6 {[%emt 0:05:21]} Qxg6 {[%emt 0:00:12]} 21. Qxh5 {[%emt 0:00:14]} Bg5+ {[%emt 0:01:04]} 22. Kc2 {[%emt 0:00:25]} Qxh5 {[%emt 0:00:08]} 23. Rxh5 {[%emt 0:00:07]} Rxf3 {[%emt 0:00:07]} 24. Nb5 {[%emt 0:06:38]} Rd8 {[%emt 0:00:16]} 25. Rd3 {[%emt 0:05:22]} Rf2+ {[%emt 0:00:40]} 26. Kb1 {[%emt 0:02:03]} Re2 {[%emt 0:01:41]} 27. Nc3 {[%emt 0:00:32]} Re1+ {[%emt 0:00:34]} 28. Kc2 {[%emt 0:01:42]} Rf8 {[%emt 0:00:32]} 29. Rh2 {[%emt 0:00:28]} a6 {[%emt 0:02:24]} 30. a3 {[%emt 0:01:18]} b5 {[%emt 0:01:05]} 31. cxb5 {[%emt 0:00:30]} axb5 {[%emt 0:00:01]} 32. Nxb5 {[%emt 0:00:26]} Rc1+ {[%emt 0:00:21]} 0-1

[Event "2nd Sparkasse Trophy Harrwitz Memorial"]
[Site "Bolzano"]
[Date "2025.04.25"]
[Round "1.5"]
[White "Hofegger, Jakob"]
[Black "Heppert, Lars"]
[Result "1-0"]
[Annotator "RC"]
[ECO "C00"]
[WhiteElo "2142"]
[BlackElo "1949"]
[PlyCount "105"]
[EventDate "2025.04.19"]
[EventType "swiss"]
[EventCountry "ITA"]
[SourceTitle "playchess.com"]
[Source "ChessBase"]
[SourceQuality "1"]
[TimeControl "40/5400+30:900+30"]

1. Nf3 {[%emt 0:00:03]} d5 {[%emt 0:00:15]} 2. g3 {[%emt 0:00:05]} Nf6 {[%emt 0:00:08]} 3. Bg2 {[%emt 0:00:09]} e6 {[%emt 0:00:12]} 4. O-O {[%emt 0:00:17]} c5 {[%emt 0:01:02]} 5. d3 {[%emt 0:00:16]} Nc6 {[%emt 0:00:09]} 6. Nbd2 {[%emt 0:00:07]} Be7 {[%emt 0:00:25]} 7. e4 {[%emt 0:00:09]} dxe4 {[%emt 0:04:18]} 8. dxe4 {[%emt 0:00:42]} e5 {[%emt 0:00:14]} 9. c3 {[%emt 0:00:36]} O-O {[%emt 0:00:12]} 10. Qe2 {[%emt 0:00:27]} Qc7 {[%emt 0:00:34]} 11. Nc4 {[%emt 0:01:09]} b5 {[%emt 0:02:50]} 12. Ne3 {[%emt 0:01:37]} Be6 {[%emt 0:02:24]} 13. Ng5 {[%emt 0:04:35]} Rab8 {[%emt 0:08:07]} 14. Nxe6 {[%emt 0:00:34]} fxe6 {[%emt 0:00:06]} 15. a4 {[%emt 0:01:18]} a6 {[%emt 0:01:31]} 16. axb5 {[%emt 0:00:33]} axb5 {[%emt 0:00:11]} 17. Bh3 {[%emt 0:06:53]} Nd8 {[%emt 0:02:01]} 18. Ng4 {[%emt 0:05:23]} Nd7 {[%emt 0:03:13]} 19. f3 {[%emt 0:13:21]} c4 {[%emt 0:00:50]} 20. Be3 {[%emt 0:00:21]} Bc5 {[%emt 0:01:35]} 21. Rfd1 {[%emt 0:02:03]} Bxe3+ {[%emt 0:00:35]} 22. Qxe3 {[%emt 0:00:23]} Nc5 {[%emt 0:01:06]} 23. Bf1 {[%emt 0:08:09]} Ndb7 {[%emt 0:08:13]} 24. Kg2 {[%emt 0:02:11]} Ra8 {[%emt 0:04:14]} 25. Qg5 {[%emt 0:02:22]} Rxa1 {[%emt 0:11:17]} 26. Rxa1 {[%emt 0:01:26]} Nd3 {[%emt 0:04:34]} 27. Bxd3 {[%emt 0:05:20]} cxd3 {[%emt 0:00:43]} 28. Rd1 {[%emt 0:06:16]} Rd8 {[%emt 0:04:07]} 29. Qxe5 {[%emt 0:05:35]} Qxe5 {[%emt 0:01:11]} 30. Nxe5 {[%emt 0:00:05]} Nc5 {[%emt 0:04:59]} 31. Rd2 {[%emt 0:01:44]} Rc8 {[%emt 0:12:42]} 32. Kf2 {[%emt 0:01:16]} Kf8 {[%emt 0:00:33]} 33. Ke3 {[%emt 0:01:16]} Ke7 {[%emt 0:00:31]} 34. Nxd3 {[%emt 0:01:22]} Nd7 {[%emt 0:03:27]} 35. Rd1 {[%emt 0:03:00]} Nb6 {[%emt 0:00:17]} 36. Ra1 {[%emt 0:01:15]} Rc7 {[%emt 0:01:08]} 37. Ke2 {[%emt 0:01:01]} Na4 {[%emt 0:00:37]} 38. Kd2 {[%emt 0:01:26]} Nb6 {[%emt 0:01:21]} 39. b3 {[%emt 0:00:34]} Nd7 {[%emt 0:00:40]} 40. Ra5 {[%emt 0:00:51]} Rb7 {[%emt 0:00:55]} 41. Ra6 {[%emt 0:16:28]} Rc7 {[%emt 0:20:14]} 42. Kc2 {[%emt 0:01:44]} Nb8 {[%emt 0:02:09]} 43. Rb6 {[%emt 0:00:41]} Nc6 {[%emt 0:00:26]} 44. Kd2 {[%emt 0:00:56]} Na7 {[%emt 0:00:33]} 45. Ne5 {[%emt 0:01:07]} Kf6 {[%emt 0:02:13]} 46. f4 {[%emt 0:00:25]} g5 {[%emt 0:00:58]} 47. Ng4+ {[%emt 0:01:29]} Kf7 {[%emt 0:04:14]} 48. fxg5 {[%emt 0:00:30]} Re7 {[%emt 0:00:00]} 49. Ne5+ {[%emt 0:00:00]} Kg7 {[%emt 0:00:00]} 50. h4 {[%emt 0:00:00]} h6 {[%emt 0:00:00]} 51. gxh6+ {[%emt 0:00:00]} Kf6 {[%emt 0:00:00]} 52. Nf3 {[%emt 0:00:00]} Kg6 {[%emt 0:00:00]} 53. h7 {[%emt 0:00:00]} 1-0

[Event "2nd Sparkasse Trophy Harrwitz Memorial"]
[Site "Bolzano"]
[Date "2025.04.25"]
[Round "1.6"]
[White "Gil, Arthur"]
[Black "Sbarra, Marco"]
[Result "1/2-1/2"]
[Annotator "RC"]
[ECO "C45"]
[WhiteElo "1937"]
[BlackElo "2125"]
[PlyCount "72"]
[EventDate "2025.04.19"]
[EventType "swiss"]
[EventCountry "ITA"]
[SourceTitle "playchess.com"]
[Source "ChessBase"]
[SourceQuality "1"]
[TimeControl "40/5400+30:900+30"]

1. e4 {[%emt 0:00:05]} e5 {[%emt 0:00:05]} 2. Nf3 {[%emt 0:00:17]} Nc6 {[%emt 0:00:04]} 3. d4 {[%emt 0:00:20]} exd4 {[%emt 0:00:06]} 4. Nxd4 {[%emt 0:00:13]} Nf6 {[%emt 0:00:05]} 5. Nxc6 {[%emt 0:02:08]} bxc6 {[%emt 0:00:06]} 6. e5 {[%emt 0:01:01]} Qe7 {[%emt 0:00:20]} 7. Qe2 {[%emt 0:01:03]} Nd5 {[%emt 0:00:08]} 8. c4 {[%emt 0:03:40]} Nb6 {[%emt 0:00:11]} 9. b3 {[%emt 0:07:06]} a5 {[%emt 0:01:03]} 10. Bb2 {[%emt 0:09:18]} a4 {[%emt 0:00:35]} 11. Qe3 {[%emt 0:13:42]} d5 {[%emt 0:14:34]} 12. exd6 {[%emt 0:07:07]} Qxe3+ {[%emt 0:00:15]} 13. fxe3 {[%emt 0:00:08]} cxd6 {[%emt 0:00:33]} 14. Bd3 {[%emt 0:02:13]} Be6 {[%emt 0:06:22]} 15. O-O {[%emt 0:02:19]} d5 {[%emt 0:07:04]} 16. Bd4 {[%emt 0:06:20]} axb3 {[%emt 0:04:06]} 17. cxd5 {[%emt 0:09:09]} Nxd5 {[%emt 0:09:29]} 18. axb3 {[%emt 0:08:59]} Rxa1 {[%emt 0:00:07]} 19. Bxa1 {[%emt 0:00:04]} Nxe3 {[%emt 0:12:20]} 20. Rc1 {[%emt 0:01:34]} Bd6 {[%emt 0:01:59]} 21. Rxc6 {[%emt 0:02:00]} Ke7 {[%emt 0:01:21]} 22. Bd4 {[%emt 0:01:00]} Nf5 {[%emt 0:00:44]} 23. Bc3 {[%emt 0:06:14]} Bd5 {[%emt 0:03:18]} 24. Ra6 {[%emt 0:01:42]} Bc5+ {[%emt 0:01:28]} 25. Kf1 {[%emt 0:01:19]} Ne3+ {[%emt 0:01:30]} 26. Ke2 {[%emt 0:00:27]} Nxg2 {[%emt 0:01:14]} 27. Bxg7 {[%emt 0:01:59]} Rb8 {[%emt 0:07:22]} 28. Nc3 {[%emt 0:01:19]} Nf4+ {[%emt 0:04:33]} 29. Kd2 {[%emt 0:00:32]} Bb7 {[%emt 0:02:51]} 30. Bf6+ {[%emt 0:03:45]} Kf8 {[%emt 0:02:32]} 31. Ra4 {[%emt 0:01:57]} Nxd3 {[%emt 0:03:35]} 32. Kxd3 {[%emt 0:00:08]} Bg2 {[%emt 0:00:50]} 33. Kc4 {[%emt 0:02:11]} Rc8 {[%emt 0:04:25]} 34. Kd3 {[%emt 0:00:31]} Rb8 {[%emt 0:02:39]} 35. Kc4 {[%emt 0:00:09]} Rc8 {[%emt 0:00:42]} 36. Kd3 {[%emt 0:00:06]} Rb8 {[%emt 0:09:54]} 1/2-1/2

[Event "2nd Sparkasse Trophy Harrwitz Memorial"]
[Site "Bolzano"]
[Date "2025.04.25"]
[Round "2.1"]
[White "Casadio, Niccolo`"]
[Black "Hofegger, Jakob"]
[Result "0-1"]
[Annotator "RC"]
[ECO "B57"]
[WhiteElo "2268"]
[BlackElo "2142"]
[PlyCount "64"]
[EventDate "2025.04.19"]
[EventType "swiss"]
[EventCountry "ITA"]
[SourceTitle "playchess.com"]
[Source "ChessBase"]
[SourceQuality "1"]
[TimeControl "40/5400+30:900+30"]

1. e4 {[%emt 0:00:03]} c5 {[%emt 0:00:15]} 2. Nf3 {[%emt 0:00:20]} d6 {[%emt 0:00:33]} 3. d4 {[%emt 0:00:08]} cxd4 {[%emt 0:00:04]} 4. Nxd4 {[%emt 0:00:06]} Nf6 {[%emt 0:00:06]} 5. Nc3 {[%emt 0:00:04]} Nc6 {[%emt 0:00:17]} 6. Bc4 {[%emt 0:00:13]} Bd7 {[%emt 0:02:06]} 7. Be3 {[%emt 0:02:28]} Rc8 {[%emt 0:04:13]} 8. Bb3 {[%emt 0:01:03]} e6 {[%emt 0:07:45]} 9. Qe2 {[%emt 0:02:09]} Be7 {[%emt 0:01:37]} 10. O-O-O {[%emt 0:00:45]} a6 {[%emt 0:06:00]} 11. f3 {[%emt 0:04:12]} Na5 {[%emt 0:07:30]} 12. Kb1 {[%emt 0:02:21]} b5 {[%emt 0:02:13]} 13. g4 {[%emt 0:01:24]} Nxb3 {[%emt 0:00:42]} 14. cxb3 {[%emt 0:00:30]} b4 {[%emt 0:06:57]} 15. Na4 {[%emt 0:00:45]} Qa5 {[%emt 0:05:15]} 16. g5 {[%emt 0:00:56]} Nh5 {[%emt 0:02:46]} 17. f4 {[%emt 0:01:39]} g6 {[%emt 0:00:53]} 18. Rc1 {[%emt 0:04:38]} O-O {[%emt 0:02:00]} 19. Rhf1 {[%emt 0:08:08]} Ng7 {[%emt 0:28:34]} 20. Qd2 {[%emt 0:04:18]} e5 {[%emt 0:01:50]} 21. Ne2 {[%emt 0:01:29]} Bxa4 {[%emt 0:04:21]} 22. bxa4 {[%emt 0:00:17]} Qxa4 {[%emt 0:00:08]} 23. f5 {[%emt 0:01:27]} b3 {[%emt 0:00:39]} 24. axb3 {[%emt 0:05:10]} Qxe4+ {[%emt 0:00:17]} 25. Ka2 {[%emt 0:00:17]} Nxf5 {[%emt 0:00:43]} 26. Rxf5 {[%emt 0:10:02]} Qxf5 {[%emt 0:00:52]} 27. Nc3 {[%emt 0:00:06]} Qe6 {[%emt 0:05:03]} 28. Rf1 {[%emt 0:02:03]} Rb8 {[%emt 0:01:20]} 29. Nd5 {[%emt 0:03:01]} Rb5 {[%emt 0:00:13]} 30. Rd1 {[%emt 0:00:08]} Rfb8 {[%emt 0:02:19]} 31. b4 {[%emt 0:00:38]} Rxb4 {[%emt 0:01:05]} 32. h4 {[%emt 0:03:21]} Rd4 {[%emt 0:00:34]} 0-1

[Event "2nd Sparkasse Trophy Harrwitz Memorial"]
[Site "Bolzano"]
[Date "2025.04.25"]
[Round "2.2"]
[White "Bonagura, Stefano"]
[Black "Csontos, Aron"]
[Result "0-1"]
[Annotator "RC"]
[ECO "E14"]
[WhiteElo "2199"]
[BlackElo "2262"]
[PlyCount "100"]
[EventDate "2025.04.19"]
[EventType "swiss"]
[EventCountry "ITA"]
[SourceTitle "playchess.com"]
[Source "ChessBase"]
[SourceQuality "1"]
[TimeControl "40/5400+30:900+30"]

1. d4 {[%emt 0:00:11]} Nf6 {[%emt 0:00:06]} 2. Nf3 {[%emt 0:00:12]} e6 {[%emt 0:00:06]} 3. e3 {[%emt 0:00:13]} c5 {[%emt 0:00:20]} 4. Bd3 {[%emt 0:00:25]} cxd4 {[%emt 0:00:29]} 5. exd4 {[%emt 0:00:18]} b6 {[%emt 0:00:50]} 6. O-O {[%emt 0:03:05]} Bb7 {[%emt 0:00:10]} 7. c4 {[%emt 0:04:40]} d6 {[%emt 0:02:00]} 8. Nc3 {[%emt 0:01:02]} Be7 {[%emt 0:00:13]} 9. Re1 {[%emt 0:04:30]} O-O {[%emt 0:00:43]} 10. d5 {[%emt 0:02:18]} e5 {[%emt 0:06:48]} 11. Rb1 {[%emt 0:09:04]} Nbd7 {[%emt 0:06:14]} 12. b4 {[%emt 0:03:44]} Kh8 {[%emt 0:08:48]} 13. Nd2 {[%emt 0:21:26]} Ng8 {[%emt 0:06:25]} 14. Nb3 {[%emt 0:01:06]} f5 {[%emt 0:01:17]} 15. f4 {[%emt 0:01:39]} Ba6 {[%emt 0:23:04]} 16. b5 {[%emt 0:19:26]} Bc8 {[%emt 0:00:44]} 17. Ba3 {[%emt 0:00:29]} Qc7 {[%emt 0:12:20]} 18. Bf1 {[%emt 0:02:29]} e4 {[%emt 0:05:25]} 19. Nd4 {[%emt 0:01:11]} Nc5 {[%emt 0:00:05]} 20. Bxc5 {[%emt 0:01:08]} dxc5 {[%emt 0:00:47]} 21. Nc6 {[%emt 0:08:17]} Qxf4 {[%emt 0:04:00]} 22. Qc1 {[%emt 0:06:23]} Qd6 {[%emt 0:02:07]} 23. g3 {[%emt 0:00:45]} Bf6 {[%emt 0:00:38]} 24. Ne2 {[%emt 0:00:15]} Bd7 {[%emt 0:00:45]} 25. Qf4 {[%emt 0:00:27]} Qxf4 {[%emt 0:00:48]} 26. Nxf4 {[%emt 0:00:06]} g5 {[%emt 0:08:28]} 27. Nh3 {[%emt 0:03:29]} Nh6 {[%emt 0:02:42]} 28. Nf2 {[%emt 0:00:46]} g4 {[%emt 0:00:54]} 29. Nd1 {[%emt 0:01:46]} Nf7 {[%emt 0:00:43]} 30. Ne3 {[%emt 0:01:20]} Nd6 {[%emt 0:01:51]} 31. Ng2 {[%emt 0:00:58]} a6 {[%emt 0:02:22]} 32. a4 {[%emt 0:00:43]} axb5 {[%emt 0:00:05]} 33. axb5 {[%emt 0:00:09]} Kg7 {[%emt 0:01:03]} 34. Nf4 {[%emt 0:00:17]} Kf7 {[%emt 0:00:05]} 35. h3 {[%emt 0:01:02]} Ra3 {[%emt 0:00:41]} 36. Kh2 {[%emt 0:00:49]} gxh3 {[%emt 0:00:18]} 37. Bxh3 {[%emt 0:00:31]} Nxc4 {[%emt 0:00:20]} 38. Ne6 {[%emt 0:00:37]} Rg8 {[%emt 0:01:21]} 39. Bxf5 {[%emt 0:00:36]} Nd2 {[%emt 0:00:20]} 40. Bxe4 {[%emt 0:01:22]} Nxb1 {[%emt 0:00:20]} 41. Bxb1 {[%emt 0:16:01]} Rgxg3 {[%emt 0:18:08]} 42. Bf5 {[%emt 0:00:00]} Rge3 {[%emt 0:00:00]} 43. Rf1 {[%emt 0:00:00]} Rf3 {[%emt 0:00:00]} 44. Rxf3 {[%emt 0:00:00]} Rxf3 {[%emt 0:00:00]} 45. Ng5+ {[%emt 0:00:00]} Bxg5 {[%emt 0:00:00]} 46. Bxd7 {[%emt 0:00:00]} Bf4+ {[%emt 0:00:00]} 47. Kg2 {[%emt 0:00:00]} Rb3 {[%emt 0:00:00]} 48. Kf2 {[%emt 0:00:58]} Kf6 {[%emt 0:00:00]} 49. Na7 {[%emt 0:00:21]} c4 {[%emt 0:00:00]} 50. Ke2 {[%emt 0:00:14]} Rb2+ {[%emt 0:00:00]} 0-1

[Event "2nd Sparkasse Trophy Harrwitz Memorial"]
[Site "Bolzano"]
[Date "2025.04.25"]
[Round "2.3"]
[White "Spornberger, Andre"]
[Black "Bodrov, Timofey"]
[Result "1/2-1/2"]
[Annotator "RC"]
[ECO "D02"]
[WhiteElo "2233"]
[BlackElo "2113"]
[PlyCount "69"]
[EventDate "2025.04.19"]
[EventType "swiss"]
[EventCountry "ITA"]
[SourceTitle "playchess.com"]
[Source "ChessBase"]
[SourceQuality "1"]
[TimeControl "40/5400+30:900+30"]

1. d4 {[%emt 0:00:04]} Nf6 {[%emt 0:00:34]} 2. Bf4 {[%emt 0:00:08]} d5 {[%emt 0:00:54]} 3. e3 {[%emt 0:00:17]} c5 {[%emt 0:00:49]} 4. c3 {[%emt 0:00:24]} e6 {[%emt 0:02:29]} 5. Nd2 {[%emt 0:00:51]} Bd6 {[%emt 0:00:48]} 6. Bg3 {[%emt 0:00:28]} O-O {[%emt 0:00:20]} 7. Ngf3 {[%emt 0:00:34]} Nc6 {[%emt 0:00:45]} 8. Bd3 {[%emt 0:01:09]} b6 {[%emt 0:00:32]} 9. O-O {[%emt 0:00:52]} Bb7 {[%emt 0:00:19]} 10. Ne5 {[%emt 0:06:04]} Ne7 {[%emt 0:02:00]} 11. a4 {[%emt 0:02:13]} a5 {[%emt 0:05:17]} 12. Re1 {[%emt 0:07:49]} Nf5 {[%emt 0:01:27]} 13. Bf4 {[%emt 0:02:47]} Ne4 {[%emt 0:09:37]} 14. Bb5 {[%emt 0:16:32]} f6 {[%emt 0:07:49]} 15. Nd3 {[%emt 0:02:00]} Nxd2 {[%emt 0:15:02]} 16. Qxd2 {[%emt 0:01:31]} c4 {[%emt 0:02:58]} 17. e4 {[%emt 0:13:13]} dxe4 {[%emt 0:02:04]} 18. Bxc4 {[%emt 0:00:58]} Bd5 {[%emt 0:00:28]} 19. Bxd5 {[%emt 0:00:39]} exd5 {[%emt 0:00:08]} 20. Bxd6 {[%emt 0:00:46]} Qxd6 {[%emt 0:02:36]} 21. Nf4 {[%emt 0:08:06]} Rae8 {[%emt 0:02:05]} 22. g3 {[%emt 0:00:49]} Nh6 {[%emt 0:04:05]} 23. Qe2 {[%emt 0:04:26]} g5 {[%emt 0:05:03]} 24. Ng2 {[%emt 0:03:34]} f5 {[%emt 0:07:56]} 25. Qh5 {[%emt 0:04:02]} Qg6 {[%emt 0:01:19]} 26. Qxg6+ {[%emt 0:02:40]} hxg6 {[%emt 0:00:06]} 27. Ne3 {[%emt 0:00:52]} Rd8 {[%emt 0:00:27]} 28. Ra3 {[%emt 0:01:00]} f4 {[%emt 0:01:42]} 29. Nf1 {[%emt 0:00:24]} Nf5 {[%emt 0:05:58]} 30. Rb3 {[%emt 0:00:35]} Rd6 {[%emt 0:00:24]} 31. Rb5 {[%emt 0:00:21]} Rc8 {[%emt 0:19:59]} 32. Nd2 {[%emt 0:20:22]} Kf7 {[%emt 0:00:30]} 33. g4 {[%emt 0:00:30]} Nh4 {[%emt 0:00:30]} 34. c4 {[%emt 0:00:30]} dxc4 {[%emt 0:00:30]} 35. Nxe4 {[%emt 0:00:30]} 1/2-1/2